fUSD/lending_fUSD_20240707
["ID","MTS","AMOUNT","RATE_DAILY","PERIOD"]
[331389892,1720325432971,-2001.56,0.0001372,2]
[331389893,1720325432984,-548.0,0.0001372,2]
[331389894,1720325432994,-292.106,0.0001372,2]
[331389895,1720325433005,-5179.0,0.0001372,2]
[331389896,1720325433026,-19212.62517044,0.0001372,2]
[331389897,1720325433039,-806.77598637,0.0001372,2]
[331389898,1720325433050,-546.53616094,0.0001372,2]
[331389899,1720325433090,-13506.13668225,0.0001372,2]
[331389900,1720325433102,-5831.042,0.0001372,2]
[331389901,1720325433113,-1199.0,0.0001372,2]
[331389902,1720325433123,-1665.0,0.0001372,2]
[331389903,1720325433132,-1000.0,0.000138,2]
[331389904,1720325433142,-417.66776565,0.00013834,2]
[331389905,1720325433153,-500.0,0.00013888,2]
[331389906,1720325433164,-200.0,0.00013888,2]
[331389907,1720325433175,-1721.8631,0.00013889,2]
[331389908,1720325433185,-155.0,0.00013899,2]
[331389909,1720325433197,-159.80473577,0.000139,2]
[331389910,1720325433206,-1000.0,0.000139,2]
[331389911,1720325433215,-261.62409135,0.000139,2]
[331389912,1720325433225,-350.5945277,0.00013989,2]
[331389913,1720325433234,-2361.6907874,0.00013989,2]
[331389914,1720325433243,-3788.3007497,0.00013989,2]
[331389915,1720325433253,-3491.6663566,0.00013989,2]
[331389916,1720325433266,-350.5945277,0.0001399,2]
[331389917,1720325433277,-350.5945277,0.0001399,2]
[331389918,1720325433289,-1972.7064224,0.0001399,2]
[331389919,1720325433300,-1583.7220574,0.0001399,2]
[331389920,1720325433312,-3164.3453321,0.0001399,2]
[331389921,1720325433322,-2540.3899145,0.0001399,2]
[331389922,1720325433332,-2916.5683685,0.0001399,2]
[331389923,1720325433343,-2341.4703803,0.0001399,2]
[331389924,1720325433353,-563.4686313,0.00013999,2]
[331389925,1720325433363,-460.66027391,0.00013999,2]
[331389926,1720325433372,-3929.5070928,0.00013999,2]
[331389927,1720325433384,-664.57727663,0.00013999,2]
[331389928,1720325433396,-10041.07053984,0.00013999,2]
[331389929,1720325433407,-2000.0,0.00013999,2]
[331389930,1720325433419,-562.4996314,0.00013999,2]
[331389931,1720325433430,-463.82467378,0.00013999,2]
[331389932,1720325433443,-382.31751455,0.00013999,2]
[331389933,1720325433455,-4051.00227482,0.00013999,2]
[331389934,1720325433466,-2114.71810621,0.00013999,2]
[331389935,1720325433477,-5670.4163738,0.00013999,2]
[331390023,1720325441034,-374.94082365,0.00013712,2]
[331390025,1720325441046,-34.02553022,0.00013712,2]
[331390027,1720325441056,-2975.31309718,0.00013999,2]
[331390058,1720325441387,-5808.32989986,0.00013999,2]
[331390059,1720325441401,-1699.42069628,0.00013999,2]
[331390060,1720325441412,-2833.75534537,0.00013999,2]
[331390061,1720325441424,-1008.16876626,0.00013999,2]
[331390062,1720325441436,-712.24035346,0.00013999,2]
[331390063,1720325441450,-785.92464769,0.00013999,2]
[331390064,1720325441462,-782.62207443,0.00013999,2]
[331390065,1720325441474,-3810.98811669,0.00013999,2]
[331390066,1720325441547,-245.39482389,0.00013998,2]
[331390067,1720325441558,-337.86590381,0.00013999,2]
[331390068,1720325441570,-495.55389865,0.00013999,2]
[331390069,1720325441582,-764.42214,0.00013999,2]
[331390070,1720325441594,-519.73379976,0.00013999,2]
[331390071,1720325441606,-64933.76788165,0.00013999,2]
[331390072,1720325441618,-799.79878504,0.00013999,2]
[331390073,1720325441630,-1197.8095201,0.00013999,2]
[331390074,1720325441642,-1312.16685292,0.00013999,2]
[331390075,1720325441654,-6584.77830081,0.00013999,2]
[331390076,1720325441666,-4547.08758781,0.00013999,2]
[331390077,1720325441680,-3604.54927796,0.00013999,2]
[331390078,1720325441692,-1226.66149548,0.00013999,2]
[331390079,1720325441703,-55545.00000004,0.00013999,2]
[331390080,1720325441715,-3607.25853721,0.00013999,2]
[331390081,1720325441726,-1751.0,0.00013999,2]
[331390103,1720325443633,-1071.0,0.0001372,2]
[331390104,1720325443642,-10391.42947512,0.00013999,2]
[331390105,1720325443654,-20000.39273203,0.00013999,2]
[331390106,1720325443852,-254911.22860463,0.00013999,2]
[331390107,1720325443865,-489.98199999,0.00013999,2]
[331390108,1720325443877,-668.06889936,0.00013999,2]
[331390109,1720325443888,-2415.26216506,0.00013999,2]
[331390110,1720325443899,-513.18500005,0.00013999,2]
[331390111,1720325446648,-902.31682698,0.00013999,2]
[331390119,1720325448501,-688.2372,0.00013999,2]
[331390120,1720325448559,-1190.00909926,0.00013999,2]
[331390121,1720325579329,200.88040526,0.00011288,2]
[331390122,1720325579405,370.42959474,0.00011288,2]
[331390123,1720325732119,1412.37109195,0.00011199,2]
[331390124,1720325892691,413.27406791,0.00011199,2]
[331390125,1720326014459,3206.97341939,0.00011199,2]
[331390126,1720326014499,2967.2447525,0.00011199,2]
[331390127,1720326014538,2811.7522115,0.00011199,2]
[331390128,1720326014579,3597.46336602,0.00011199,2]
[331390129,1720326014604,9296.43700234,0.00011199,2]
[331390130,1720326137201,295.46908239,0.00011199,2]
[331390133,1720326197252,19833.87112132,0.00011199,2]
[331390134,1720326198153,67856.27687089,0.00011199,2]
[331390135,1720326218232,20318.66280891,0.00011199,2]
[331390136,1720326229084,155.19886827,0.00011199,2]
[331390137,1720326241187,625.37,0.00010827,2]
[331390138,1720326244215,299.28492441,0.00011199,2]
[331390139,1720326250933,15439.86245759,0.00011199,2]
[331390140,1720326273437,3027.57638009,0.00011199,2]
[331390141,1720326280928,15439.86245759,0.00011199,2]
[331390142,1720326292818,3394.25146719,0.00011199,2]
[331390143,1720326336008,5613.16776452,0.00011199,2]
[331390144,1720326350292,1547.97912297,0.00011199,2]
[331390145,1720326355272,10525.28715581,0.00011199,2]
[331390146,1720326407636,278845.0791078,0.00011199,2]
[331390147,1720326419450,2201.79322894,0.00011199,2]
[331390148,1720326440451,933.34225528,0.00011199,2]
[331390149,1720326462532,1820.86989251,0.00011199,2]
[331390150,1720326472442,3032.8015662,0.00011199,2]
[331390151,1720326478476,1367.58779488,0.00011199,2]
[331390152,1720326510094,253.40315431,0.00011199,2]
[331390153,1720326527202,-3576.58199922,0.00012114,2]
[331390154,1720326527240,-762.54711382,0.00012158,2]
[331390155,1720326527282,-2814.03488538,0.00012158,2]
[331390156,1720326527320,-300.0,0.00012201,2]
[331390157,1720326527359,-2490.73635261,0.00012202,2]
[331390158,1720326536284,1253.30119177,0.00011199,2]
[331390159,1720326543956,158.86374838,0.00011199,2]
[331390160,1720326551548,-5803.64924501,0.00012202,2]
[331390161,1720326551601,-1350.63821269,0.00012202,2]
[331390162,1720326552961,155.86199508,0.00011199,2]
[331390163,1720326560442,3185.32706704,0.00011199,2]
[331390164,1720326571980,258.97923164,0.00011199,2]
[331390165,1720326574198,397.39052342,0.00011199,2]
[331390166,1720326576582,-585.0,0.00012102,2]
[331390167,1720326586295,216.67569474,0.00011199,2]
[331390168,1720326586382,1369.69346756,0.00011199,2]
[331390169,1720326589380,202.25757491,0.00011199,2]
[331390171,1720326620511,206.52599146,0.00011199,2]
[331390172,1720326620845,1265.3117464,0.00011199,2]
[331390173,1720326632090,-299.6900001,0.00012102,2]
[331390174,1720326632102,-306.20467746,0.00012102,2]
[331390175,1720326632114,-298.96499867,0.00012102,2]
[331390176,1720326632126,-2086.72232297,0.00012102,2]
[331390177,1720326632135,-59.65767703,0.00012202,2]
[331390178,1720326632148,-99.43322403,0.00012202,2]
[331390179,1720326632157,-200.04758692,0.00012214,2]
[331390180,1720326632166,-2422.56029547,0.00012273,2]
[331390181,1720326632178,-748.65194149,0.00012273,2]
[331390182,1720326632190,-709.8718828,0.00012273,2]
[331390183,1720326632202,-4475.52028849,0.00012273,2]
[331390184,1720326632472,-337.01913656,0.00012273,2]
[331390185,1720326632484,-2133.64761806,0.00012273,2]
[331390186,1720326632494,-300.0,0.0001242,2]
[331390187,1720326632503,-12071.5526345,0.00012421,2]
[331390188,1720326632514,-711.72882134,0.00012421,2]
[331390189,1720326632526,-472.14322502,0.00012421,2]
[331390190,1720326632538,-5506.62554695,0.00012421,2]
[331390191,1720326632550,-5137.94977219,0.00012421,2]
[331390192,1720326632560,-158.71,0.00012473,2]
[331390193,1720326632569,-200.0,0.00012474,2]
[331390194,1720326632579,-250.0,0.00012474,2]
[331390195,1720326632588,-152.70690737,0.000126,2]
[331390196,1720326632598,-250.0,0.00012639,2]
[331390197,1720326632608,-2043.02,0.00012652,2]
[331390198,1720326632618,-500.0,0.0001286,2]
[331390199,1720326632628,-451.69127138,0.0001286,2]
[331390200,1720326632641,-48.30872862,0.0001286,2]
[331390201,1720326632651,-541.37459448,0.0001286,2]
[331390202,1720326632660,-600.0,0.0001286,2]
[331390203,1720326632670,-200.0,0.00012871,2]
[331390204,1720326632680,-241.29,0.00012922,2]
[331390205,1720326632689,-150.99,0.00012922,2]
[331390206,1720326632700,-571.21,0.00013088,2]
[331390207,1720326632710,-625.37,0.00013091,2]
[331390208,1720326632720,-607.26,0.00013092,2]
[331390209,1720326632731,-1547.20000821,0.00013128,2]
[331390210,1720326632741,-347.22587627,0.00013128,2]
[331390211,1720326632751,-1547.20000821,0.00013128,2]
[331390212,1720326632760,-151.87,0.00013186,2]
[331390213,1720326632769,-1165.7,0.00013186,2]
[331390214,1720326632779,-8201.2198545,0.00013186,2]
[331390215,1720326632791,-2438.8101455,0.00013186,2]
[331390216,1720326632802,-151.87,0.00013324,2]
[331390217,1720326632812,-664.4102245,0.00013324,2]
[331390218,1720326632824,-999.1597755,0.00013324,2]
[331390219,1720326632834,-461.57,0.00013324,2]
[331390220,1720326632843,-499.99,0.00013461,2]
[331390221,1720326632853,-151.87,0.00013461,2]
[331390222,1720326632862,-584.46734075,0.00013472,2]
[331390223,1720326632874,-169.241069,0.00013472,2]
[331390224,1720326632883,-220.59980367,0.00013474,2]
[331390242,1720326638095,-1287.48512797,0.00013472,2]
[331390244,1720326638105,-374.63525229,0.00013474,2]
[331390246,1720326638116,-399.08923112,0.00013474,2]
[331390248,1720326638257,281.51217365,0.00011199,2]
[331390251,1720326640618,-28191.02241292,0.00013474,2]
[331390254,1720326640629,-1392.96035392,0.00013516,2]
[331390257,1720326640639,-155.0,0.00013516,2]
[331390261,1720326640650,-637.29206481,0.00013543,2]
[331390264,1720326640660,-651.44479338,0.00013543,2]
[331390266,1720326640670,-528.40530966,0.00013574,2]
[331390269,1720326640681,-3085.24114609,0.00013574,2]
[331390271,1720326640691,-554.18001742,0.00013574,2]
[331390273,1720326640702,-182.67465203,0.00013574,2]
[331390275,1720326640713,-354.0472301,0.00013574,2]
[331390277,1720326640723,-185.44657418,0.00013574,2]
[331390279,1720326640734,-2737.79461804,0.00013574,2]
[331390281,1720326640744,-5029.9590737,0.00013574,2]
[331390283,1720326640754,-430.07408186,0.00013574,2]
[331390285,1720326640765,-323.68555675,0.00013574,2]
[331390287,1720326640776,-155.18786406,0.00013574,2]
[331390288,1720326640799,-151.87,0.00013598,2]
[331390289,1720326640810,-420.0,0.00013662,2]
[331390290,1720326640820,-500.0,0.00013682,2]
[331390291,1720326640830,-600.0,0.00013682,2]
[331390292,1720326640840,-250.0,0.00013699,2]
[331390293,1720326640850,-347.55,0.00013699,2]
[331390294,1720326640860,-8660.0,0.00013721,2]
[331390295,1720326640869,-151.87,0.00013736,2]
[331390296,1720326640880,-5033.4263,0.0001376,2]
[331390297,1720326640890,-805.6673,0.00013799,2]
[331390298,1720326640900,-327.8808,0.00013799,2]
[331390299,1720326640910,-781.6021,0.00013799,2]
[331390300,1720326640920,-2241.0705,0.00013799,2]
[331390301,1720326640930,-285.3186,0.00013799,2]
[331390302,1720326640940,-39494.2863,0.00013799,2]
[331390303,1720326640951,-1000.0,0.00013799,2]
[331390304,1720326640964,-150.2074981,0.000138,2]
[331390305,1720326640974,-173.48,0.00013807,2]
[331390306,1720326640984,-417.66776565,0.00013821,2]
[331390307,1720326640994,-1400.2878,0.00013873,2]
[331390308,1720326641004,-7955.5787,0.00013873,2]
[331390309,1720326641014,-151.87,0.00013873,2]
[331390310,1720326641024,-3000.0,0.0001388,2]
[331390311,1720326641033,-200.0,0.00013888,2]
[331390312,1720326641043,-178.159,0.00013889,2]
[331390313,1720326641054,-21351.60128371,0.00013889,2]
[331390314,1720326641068,-48485.31391629,0.00013889,2]
[331390315,1720326641078,-1204.9928,0.00013889,2]
[331390316,1720326641088,-1400.2878,0.00013889,2]
[331390317,1720326641098,-1000.0,0.00013899,2]
[331390318,1720326641110,-184.0405,0.00013899,2]
[331390319,1720326641120,-17989.6118996,0.00013899,2]
[331390320,1720326641133,-8964.01650804,0.00013899,2]
[331390321,1720326641145,-409.15439696,0.00013899,2]
[331390322,1720326641158,-43692.6507954,0.00013899,2]
[331390323,1720326641168,-685.22194102,0.00013899,2]
[331390324,1720326641178,-163.86089958,0.00013899,2]
[331390325,1720326641188,-24312.73162449,0.000139,2]
[331390326,1720326641199,-170.01110742,0.000139,2]
[331390329,1720326641208,-163.86089958,0.000139,2]
[331390332,1720326641218,-485.92843958,0.000139,2]
[331390335,1720326641228,-3000.0,0.0001395,2]
[331390338,1720326641237,-2000.0,0.00013973,3]
[331390341,1720326641246,-196.98474805,0.00013989,2]
[331390344,1720326641257,-4324.9649215,0.00013989,2]
[331390347,1720326641267,-224.545658,0.00013989,2]
[331390349,1720326641277,-1062.4677117,0.00013989,2]
[331390351,1720326641287,-155.15140957,0.00013989,2]
[331390353,1720326641296,-3655.1492977,0.0001399,2]
[331390355,1720326641305,-1068.13607512,0.0001399,2]
[331390358,1720326641323,-499.9996419,0.0001399,2]
[331390360,1720326641335,-1417.19795678,0.0001399,2]
[331390362,1720326641346,-224.545658,0.0001399,2]
[331390364,1720326641362,-19.68638522,0.0001399,2]
[331390367,1720326641375,-204.85927278,0.0001399,2]
[331390369,1720326641387,-47.08822722,0.0001399,2]
[331390383,1720326641537,-852.73010638,0.0001399,2]
[331390385,1720326641547,-737.1689555,0.0001399,2]
[331390387,1720326641558,-196.98474805,0.0001399,2]
[331390389,1720326641568,-3642.7653078,0.00013991,2]
[331390658,1720326644342,-550.61515572,0.00013574,2]
[331390659,1720326644354,-839.084,0.0001372,2]
[331390660,1720326644363,-2329.51297,0.00013991,2]
[331390661,1720326644375,-388.89449078,0.00013991,2]
[331390713,1720326644914,-5925.51205195,0.00013991,2]
[331390715,1720326644925,-9013.5259233,0.00013991,2]
[331390718,1720326644937,-3012.52088066,0.00013991,2]
[331390720,1720326644947,-7322.70091227,0.00013999,2]
[331390722,1720326644958,-10713.66373214,0.00013999,2]
[331390732,1720326645044,-1199.0,0.0001372,2]
[331390734,1720326645055,-186325.83997948,0.00013999,2]
[331390736,1720326645064,-281.73431565,0.00013999,2]
[331390738,1720326645074,-2000.0,0.00013999,2]
[331390740,1720326645083,-200.0,0.00013999,2]
[331390742,1720326645092,-2000.0,0.00013999,2]
[331390744,1720326645102,-200.0,0.00013999,2]
[331390746,1720326645112,-2000.0,0.00013999,2]
[331390748,1720326645121,-200.0,0.00013999,2]
[331390750,1720326645131,-3000.0,0.00013999,2]
[331390752,1720326645141,-3000.0,0.00013999,2]
[331390754,1720326645152,-2000.0,0.00013999,2]
[331390756,1720326645161,-200.0,0.00013999,2]
[331390758,1720326645170,-792.0,0.00014,2]
[331390760,1720326645179,-1305.0,0.00014,2]
[331390762,1720326645188,-2376.0,0.00014,2]
[331390764,1720326645198,-150.0,0.00014,2]
[331390766,1720326645207,-3250.0,0.00014,2]
[331390768,1720326645216,-548.0,0.00014,2]
[331390770,1720326645226,-1989.0,0.00014,2]
[331390772,1720326645235,-283.0,0.00014,2]
[331390774,1720326645244,-1071.0,0.00014,2]
[331390776,1720326645253,-1251.0,0.00014,2]
[331390778,1720326645263,-361.0,0.00014,2]
[331390780,1720326645272,-3444.941,0.00014,2]
[331390782,1720326645282,-1659.0,0.00014,2]
[331390784,1720326645292,-1830.0,0.00014,2]
[331390786,1720326645302,-12123.40820258,0.00014,2]
[331390788,1720326645314,-292.35005528,0.00014,2]
[331390791,1720326645325,-1025.25340289,0.00014,2]
[331390793,1720326645336,-660.19,0.00014,2]
[331390795,1720326645350,-2084.09343301,0.00014,2]
[331390807,1720326646385,-685.22194102,0.00013889,2]
[331390808,1720326646396,-190.52156494,0.00014,2]
[331390809,1720326646410,-261.18815451,0.00014,2]
[331390810,1720326646423,-384.50318454,0.00014,2]
[331390811,1720326646437,-5483.49200225,0.00014,2]
[331390812,1720326646447,-21304.76124867,0.00014,2]
[331390813,1720326646460,-11061.3,0.00014,2]
[331390814,1720326646742,-444.0,0.0001372,2]
[331390815,1720326646751,-1120.11839028,0.00014,2]
[331390816,1720326863093,644.22,0.0001089,2]
[331390817,1720326894919,155.76758533,0.0001089,2]
[331390818,1720326907688,9431.9896008,0.0001089,2]
[331390819,1720326918464,938.79228308,0.00011199,2]
[331390820,1720327002369,3230.0,0.00025,60]
[331390821,1720327027160,194.19791912,0.00011199,2]
[331390822,1720327030853,510.72147334,0.00011199,2]
[331390823,1720327169486,297.78410169,0.00011199,2]
[331390825,1720327429890,612.0,0.0001029,2]
[331390826,1720327445221,202.15862261,0.00011199,2]
[331390827,1720327470105,1458.35370028,0.00011199,2]
[331390828,1720327476283,176.17839458,0.00011199,2]
[331390829,1720327494024,196.53318267,0.00011199,2]
[331390830,1720327511680,4399.68439811,0.00011199,2]
[331390831,1720327514993,155.0,0.00011199,2]
[331390832,1720327517262,7528.14941957,0.00011199,2]
[331390833,1720327524279,1253.30119177,0.00011199,2]
[331390841,1720327566641,155.61625393,0.00011199,2]
[331390843,1720327580898,295.46908239,0.00011199,2]
[331390844,1720327665942,418.69423691,0.00011199,2]
[331390845,1720327697225,1588.792128,0.00011,2]
[331390849,1720327748691,155.22288297,0.00011199,2]
[331390853,1720327831956,-302.11780374,0.000118,2]
[331390854,1720327831972,-920.08048311,0.000118,2]
[331390855,1720327831983,-77.79195029,0.0001198,2]
[331390858,1720327831995,-81.29895077,0.0001198,2]
[331390860,1720327832004,-151.39412324,0.0001208,2]
[331390862,1720327832014,-250.0,0.00012151,2]
[331390864,1720327832023,-1691.77692599,0.00012162,2]
[331390868,1720327832568,-2443.85307401,0.00012162,2]
[331390870,1720327832578,-500.0,0.0001218,2]
[331390872,1720327832587,-250.0,0.00012202,2]
[331390874,1720327832596,-375.79,0.00012214,2]
[331390876,1720327832607,-300.0,0.0001222,2]
[331390878,1720327832616,-2014.96,0.00012221,2]
[331390879,1720327833016,-193.03,0.00012226,2]
[331390880,1720327833039,-2966.89353566,0.00012234,2]
[331390881,1720327833052,-16064.99999999,0.00012234,2]
[331390882,1720327833063,-4866.61354802,0.00012234,2]
[331390883,1720327833074,-1.49291633,0.00012234,2]
[331390884,1720327833086,-1227.25,0.00012244,2]
[331390885,1720327833097,-388.50681923,0.00012273,2]
[331390886,1720327833106,-1000.0,0.00012283,2]
[331390887,1720327833116,-266.43574909,0.00012302,2]
[331390888,1720327833127,-161.41905295,0.00012302,2]
[331390889,1720327833136,-629.84961607,0.00012314,2]
[331390890,1720327833158,-155.56924589,0.00012314,2]
[331390891,1720327833167,-251.5542779,0.00012314,2]
[331390892,1720327833179,-156.92825644,0.00012314,2]
[331390893,1720327833189,-155.30311994,0.00012314,2]
[331390894,1720327833199,-196.53318267,0.00012314,2]
[331390895,1720327833209,-160.35108387,0.00012314,2]
[331390896,1720327833218,-612.0,0.00012554,2]
[331390897,1720327833231,-102.90667962,0.00012556,2]
[331390898,1720327833244,-58.41332038,0.00012556,2]
[331390899,1720327833254,-627.06,0.00012556,2]
[331390900,1720327833264,-249.78482226,0.00012556,2]
[331390901,1720327833276,-250.20517774,0.00012556,2]
[331390902,1720327833286,-4220.23930263,0.00012556,2]
[331390903,1720327833298,-2210.79915688,0.00012556,2]
[331390904,1720327833309,-642.3977412,0.00012556,2]
[331390905,1720327833321,-1629.4257306,0.00012556,2]
[331390906,1720327833333,-11347.50135339,0.00012556,2]
[331390907,1720327833344,-5395.2899,0.00012556,2]
[331390908,1720327833356,-542.70216,0.00012556,2]
[331390909,1720327833369,-456.76620795,0.00012556,2]
[331390910,1720327833380,-956.69375819,0.00012556,2]
[331390911,1720327833392,-1074.32,0.00012556,2]
[331390912,1720327833404,-397.56791311,0.00012556,2]
[331390913,1720327833416,-1126.28677605,0.00012556,2]
[331390914,1720327833428,-525.36322395,0.00012558,2]
[331390917,1720327839499,-659.75132017,0.0001218,2]
[331390919,1720327839511,-843.29976437,0.0001218,2]
[331390921,1720327839522,-212.08677605,0.00012558,2]
[331390923,1720327839533,-200.0,0.00012592,2]
[331390925,1720327839542,-216.889053,0.000126,2]
[331390927,1720327839553,-150.00000001,0.000126,2]
[331390929,1720327839563,-161.32,0.00012616,2]
[331390931,1720327839573,-161.32,0.00012675,2]
[331390933,1720327839584,-161.32,0.00012735,2]
[331390935,1720327839594,-161.32,0.00012794,2]
[331390937,1720327839605,-161.32,0.00012853,2]
[331390939,1720327839615,-600.0,0.0001286,2]
[331390941,1720327839625,-500.0,0.0001286,2]
[331390943,1720327839635,-500.0,0.0001286,2]
[331390945,1720327839646,-700.0,0.0001286,2]
[331390947,1720327839657,-161.32,0.00012913,2]
[331390949,1720327839667,-161.32,0.00012972,2]
[331390951,1720327839680,-3435.11409667,0.00013,2]
[331390953,1720327839693,-161.32,0.00013032,2]
[331390955,1720327839705,-161.32,0.00013091,2]
[331390957,1720327839715,-266.1096228,0.00013128,2]
[331390959,1720327839725,-1105.93757883,0.00013128,2]
[331390961,1720327839737,-370.00600628,0.00013128,2]
[331390963,1720327839747,-155.48777593,0.00013128,2]
[331390965,1720327839757,-161.32,0.00013151,2]
[331390967,1720327839768,-150.0,0.00013178,2]
[331390981,1720327839990,-161.32,0.0001321,2]
[331390983,1720327840001,-6703.01495496,0.000133,2]
[331390984,1720327840011,-164.95,0.0001337,2]
[331390986,1720327840022,-169.01,0.0001341,2]
[331390988,1720327840033,-420.0,0.00013412,2]
[331390989,1720327840045,-1000.0,0.000135,2]
[331390991,1720327840056,-1342.0604415,0.00013516,2]
[331390993,1720327840067,-2144.5360235,0.00013516,2]
[331390995,1720327840078,-1138.70883432,0.00013516,2]
[331390996,1720327840088,-155.32802222,0.00013516,2]
[331390998,1720327840098,-444.13231412,0.00013516,2]
[331391000,1720327840109,-173.48,0.00013535,2]
[331391001,1720327840119,-439.66941628,0.00013543,2]
[331391003,1720327840130,-227.22563372,0.00013543,2]
[331391005,1720327840140,-649.1656,0.00013589,2]
[331391007,1720327840152,-600.0,0.00013682,2]
[331391008,1720327840162,-700.0,0.00013682,2]
[331391010,1720327840173,-354.4574,0.00013689,2]
[331391012,1720327840184,-791.16,0.00013699,2]
[331391013,1720327840195,-250.0,0.00013699,2]
[331391015,1720327840206,-1204.41941063,0.00013736,2]
[331391017,1720327840217,-417.66776565,0.00013752,2]
[331391019,1720327840227,-193.03,0.00013754,2]
[331391020,1720327840239,-801.76253234,0.00013759,2]
[331391022,1720327840249,-62698.6792,0.00013789,2]
[331391024,1720327840259,-788.8187,0.000138,2]
[331391025,1720327840269,-378.3831,0.000138,2]
[331391027,1720327840279,-300.0,0.00013809,2]
[331391029,1720327840290,-1000.0,0.00013818,2]
[331391031,1720327840300,-794.75413447,0.00013849,2]
[331391032,1720327840310,-153.20347,0.0001386,2]
[331391034,1720327840320,-295707.5140514,0.00013887,2]
[331391036,1720327840330,-500.0,0.00013888,2]
[331391038,1720327840340,-200.0,0.00013888,2]
[331391040,1720327840350,-260.89225435,0.00013889,2]
[331391041,1720327840360,-647.71813835,0.00013889,2]
[331391043,1720327840370,-703.12342522,0.00013899,2]
[331391044,1720327840380,-320.51339678,0.00013899,2]
[331391045,1720327840390,-100000.0,0.000139,2]
[331391046,1720327840400,-20837.57901221,0.000139,2]
[331391047,1720327840410,-156.62970523,0.000139,2]
[331391048,1720327840420,-2247.15697919,0.000139,2]
[331391049,1720327840430,-323.95229304,0.000139,2]
[331391050,1720327840440,-369.40721233,0.000139,2]
[331391051,1720327840449,-155.26,0.00013932,2]
[331391052,1720327840459,-300.0,0.00013932,2]
[331391053,1720327840469,-264.72009085,0.00013989,2]
[331391054,1720327840479,-254.25713924,0.00013989,2]
[331391055,1720327840488,-453.9891112,0.00013989,2]
[331391056,1720327840498,-251.75661911,0.00013989,2]
[331391057,1720327840507,-155.53272354,0.00013989,2]
[331391058,1720327840517,-155.40072879,0.00013989,2]
[331391059,1720327840527,-474.9799257,0.00013989,2]
[331391060,1720327840536,-244.91804036,0.00013989,2]
[331391061,1720327840546,-175.2972643,0.0001399,2]
[331391062,1720327840556,-20837.57901221,0.00013991,2]
[331391063,1720327840566,-14234.79133747,0.00013997,2]
[331391064,1720327840575,-281.73431564,0.00013999,2]
[331391065,1720327840585,-155.86125323,0.00013999,2]
[331391066,1720327840595,-155.0,0.00013999,2]
[331391067,1720327840605,-203.53855022,0.00013999,2]
[331391068,1720327840615,-328.89692869,0.00013999,2]
[331391069,1720327840625,-276.15184313,0.00013999,2]
[331391070,1720327840635,-155.42007508,0.00013999,2]
[331391071,1720327840645,-264.70741373,0.00013999,2]
[331391072,1720327840655,-527.36310335,0.00013999,2]
[331391073,1720327840665,-317.01872188,0.00013999,2]
[331391074,1720327840675,-155.26131652,0.00013999,2]
[331391075,1720327840685,-197.51124113,0.00013999,2]
[331391076,1720327840700,-156.49459865,0.00013999,2]
[331391077,1720327840711,-936.0,0.00014,2]
[331391078,1720327840720,-361.0,0.00014,2]
[331391079,1720327840730,-1251.0,0.00014,2]
[331391080,1720327840741,-1830.0,0.00014,2]
[331391081,1720327840750,-1659.0,0.00014,2]
[331391083,1720327840760,-449.0,0.00014,2]
[331391085,1720327840771,-385.558,0.00014,2]
[331391086,1720327840781,-809.0,0.00014,2]
[331391089,1720327840791,-619.0,0.00014,2]
[331391092,1720327840800,-1773.198,0.00014,2]
[331391093,1720327840810,-1305.0,0.00014,2]
[331391094,1720327840819,-3146.734,0.00014,2]
[331391095,1720327840829,-283.0,0.00014,2]
[331391096,1720327840838,-1989.0,0.00014,2]
[331391097,1720327840847,-548.0,0.00014,2]
[331391098,1720327840859,-475.114,0.00014,2]
[331391099,1720327840870,-150.106,0.00014,2]
[331391100,1720327840879,-1071.0,0.00014,2]
[331391101,1720327840888,-150.155,0.00014,2]
[331391102,1720327840898,-150.201,0.00014,2]